Cogmind - Beta 10.2 --- EXPLORER MODE // 2022.01.14 @ 13:11:20 Player: xerxia Result: Self-destructed Performance ------------- Evolutions (6) 3000 Regions Visited (12) 2400 Robots Destroyed (16) 80 Value Destroyed (682) 682 Prototype IDs (13) 260 Alien Tech Used (0) 0 Bonus (1918) 1918 TOTAL SCORE: 8340 Bonus ------- Pacifist 470 Met Warlord at Base 500 MAIN.C Attacked Warlord 500 Warlord Defense Kill 494 Friendly Fire -46 Cogmind --------- Core Integrity 1004/1150 Matter 40/300 Energy 935/990 System Corruption 0% Temperature Cool (9) Movement Flying (108) Ox1 Location -4/Factory Parts ------- > --- POWER (3) -------- Enhanced Fission Core Micro Fission Core Micro Fission Core > --- PROPULSION (8) --- Nuclear Pulse Thruster Field Propulsion Drive Field Propulsion Drive Impulse Thruster Impulse Thruster > --- UTILITY (7) ------ Improved Heat Sink High-capacity Storage Unit Energy Well Advanced Weight Redist. System Improved Maneuvering Thrusters > --- WEAPON (2) ------- Micro-nuke Launcher Vortex Lance > --- INVENTORY (12) --- Reinforced Antimatter Reactor Advanced Coolant Injector Energy Well (500) Matter Compressor (45) Improved Utility Shielding HERF Cannon Peak State ------------ > --- POWER ------------ Enhanced Fission Core Micro Fission Core Micro Fission Core > --- PROPULSION ------- Makeshift Flight Unit Field Propulsion Drive Field Propulsion Drive Field Propulsion Drive Nuclear Pulse Array Field Propulsion Array > --- UTILITY ---------- Improved Heat Sink High-capacity Storage Unit Energy Well Advanced Weight Redist. System Advanced Weight Redist. System Improved Maneuvering Thrusters Utility Shielding > --- WEAPON ----------- Micro-nuke Launcher Vortex Lance > --- INVENTORY -------- Reinforced Antimatter Reactor Nuclear Pulse Thruster Field Propulsion Drive Impulse Thruster Impulse Thruster Energy Well Matter Compressor Improved Utility Shielding HERF Cannon [Rating: 109] Favorites ----------- Power Angular Momentum Engine Engine Angular Momentum Engine Power Core Light Fission Core Reactor Light Antimatter Reactor Propulsion Cooled Cesium-ion Thruster Treads Light Treads Leg Improved Titanium Leg Wheel Armored Huge Wheel Flight Unit Cooled Cesium-ion Thruster Utility Advanced Weight Redist. System Device Advanced Weight Redist. System Storage High-capacity Storage Unit Protection Utility Shielding Weapon Smartbomb Launcher Energy Cannon HERF Cannon Launcher Smartbomb Launcher Piercing Weapon Vortex Lance Build | -11 -10 -9 -8 -8 -7 -6 -5 -5 -5 -5 -4 -4 ------- Run | Scr Mat Mat Mat Sto Fac Fac Fac Upp Upp War Pro Fac Slots Evolved 13 | . 1 2 2 . 2 2 2 . . . . 2 Power 2 | . 1 . . . . . . . . . . 1 Propulsion 6 | . . 2 2 . 1 1 . . . . . . Utility 5 | . . . . . 1 1 2 . . . . 1 Weapon . | . . . . . . . . . . . . . Parts Attached 62 | 2 . 1 5 3 4 13 7 2 . 10 . 15 Power 13 | . . . . 2 1 2 1 1 . 2 . 4 Engine 6 | . . . . 2 1 1 1 . . 1 . . Core 5 | . . . . . . 1 . . . . . 4 Reactor 2 | . . . . . . . . 1 . 1 . . Propulsion 34 | 2 . . 4 . 2 10 2 1 . 5 . 8 Treads 2 | 2 . . . . . . . . . . . . Leg 10 | . . . 4 . 1 5 . . . . . . Wheel 1 | . . . . . 1 . . . . . . . Hover . | . . . . . . . . . . . . . Flight 21 | . . . . . . 5 2 1 . 5 . 8 Utility 10 | . . 1 1 1 1 1 3 . . 1 . 1 Device 6 | . . 1 1 1 . 1 1 . . . . 1 Storage 2 | . . . . . . . 1 . . 1 . . Processor . | . . . . . . . . . . . . . Hackware . | . . . . . . . . . . . . . Protection 2 | . . . . . 1 . 1 . . . . . Artifact . | . . . . . . . . . . . . . Weapon 5 | . . . . . . . 1 . . 2 . 2 Energy Gun . | . . . . . . . . . . . . . Energy Cannon 1 | . . . . . . . . . . 1 . . Ballistic Gun . | . . . . . . . . . . . . . Ballistic Cannon . | . . . . . . . . . . . . . Launcher 2 | . . . . . . . 1 . . . . 1 Special Weapon . | . . . . . . . . . . . . . Impact Weapon . | . . . . . . . . . . . . . Slashing Weapon . | . . . . . . . . . . . . . Piercing Weapon 2 | . . . . . . . . . . 1 . 1 Special Melee Weapon . | . . . . . . . . . . . . . Unidentified Prototypes 3 | . . . . . . 1 . . . 1 . 1 Parts Lost 21 | . . . . 2 2 1 1 1 . 4 . 10 Power 4 | . . . . . . . 1 . . 1 . 2 Propulsion 14 | . . . . 2 2 1 . 1 . 3 . 5 Utility 2 | . . . . . . . . . . . . 2 Weapon 1 | . . . . . . . . . . . . 1 Highest Loss Streak 8 | . . . . 2 1 1 1 1 . 4 . 8 Average Slot Usage (%) 76 | . 25 22 55 59 61 83 87 83 80 79 94 86 Engine 5 | . . . . 7 14 6 5 9 5 4 5 3 Core 1 | . . . . . . 5 4 . . . . 8 Reactor 2 | . . . . . . . . . 5 5 5 2 Treads 2 | . 25 20 16 12 3 . . . . . . . Leg 6 | . . . 25 23 18 19 5 1 . . . . Flight 25 | . . . . . . 25 32 33 33 32 38 31 Device 15 | . . 2 13 16 14 18 16 16 16 16 16 16 Storage 4 | . . . . . . . 4 5 5 9 11 10 Protection 6 | . . . . . 7 6 10 11 11 6 5 5 Launcher 1 | . . . . . . . 4 5 2 . . 3 Naked Turns . | . . . . . . . . . . . . . Heaviest Build 88 | . . 1 1 7 15 22 71 71 70 81 81 88 Greatest Support 96 | 3 3 3 40 12 12 56 77 89 89 90 88 96 Greatest Overweight (x) 3 | . . . . 2 1 . 3 3 . 3 . 1 Average Overweight (x) . | . . . . . . . . . . . . . Largest Inventory Capacity 12 | 4 4 4 4 4 4 4 12 12 12 12 12 12 Average Capacity 9 | 4 4 4 4 4 4 4 11 12 12 12 12 12 Most Carried 12 | 4 3 4 4 4 4 4 12 12 12 12 8 12 Average Carried 8 | 2 3 3 4 3 3 3 7 10 10 11 8 9 Final Capacity 12 | 4 4 4 4 4 4 4 12 12 12 12 12 12 Final Carried 12 | 3 3 4 4 4 4 4 12 10 12 8 8 6 Class Distribution -------------------- 70% | Hacker-Mutant 29% | Hacker-Sprinter Dominant Class ---------------- Hacker-Mutant | -10/Materials Hacker-Mutant | -9/Materials Hacker-Mutant | -8/Materials Hacker-Mutant | -8/Storage Hacker-Mutant | -7/Factory Hacker-Mutant | -6/Factory Hacker-Mutant | -5/Factory Hacker-Mutant | -5/Upper Caves Hacker-Sprinter | -5/Upper Caves Hacker-Mutant | -5/Warlord Hacker-Mutant | -4/Proximity Caves Hacker-Sprinter | -4/Factory Resources | -11 -10 -9 -8 -8 -7 -6 -5 -5 -5 -5 -4 -4 ----------- Run | Scr Mat Mat Mat Sto Fac Fac Fac Upp Upp War Pro Fac Matter Collected 744 | 220 . . . 30 . 60 . 3 . 308 . 123 Remotely . | . . . . . . . . . . . . . Salvage Created 407 | . . . . 30 . . 32 52 . 253 . 40 Parts 22 | . . . . 2 . . 6 7 . 7 . . Haulers Intercepted . | . . . . . . . . . . . . . Recyclers Shooed 1 | . . . . . . . . . . . . 1 Parts Field Recycled . | . . . . . . . . . . . . . Retrieved Matter . | . . . . . . . . . . . . . Parts Self-Destructed . | . . . . . . . . . . . . . Prevented . | . . . . . . . . . . . . . Kills | -11 -10 -9 -8 -8 -7 -6 -5 -5 -5 -5 -4 -4 ------- Run | Scr Mat Mat Mat Sto Fac Fac Fac Upp Upp War Pro Fac Combat Hostiles Destroyed 15 | . . . . . . . 4 4 . 4 . 3 Melee 1 | . . . . . . . . . . 1 . . AOE 11 | . . . . . . . 4 4 . . . 3 Classes Destroyed 7 | . . . . 1 . . 1 . . 3 . 2 Builder 1 | . . . . 1 . . . . . . . . Swarmer 8 | . . . . . . . 4 4 . . . . Grunt 2 | . . . . . . . . . . . . 2 Brawler 1 | . . . . . . . . . . 1 . . Protector 1 | . . . . . . . . . . 1 . . Sentry 1 | . . . . . . . . . . . . 1 Demolisher 2 | . . . . . . . . . . 2 . . Best Kill Streak 4 | . . . . 1 . . 4 4 . 4 . 3 Combat Bots Only 4 | . . . . . . . 4 4 . 4 . 3 Max Kills in Single Turn 4 | . . . . 1 . . 3 4 . 1 . 1 Gunslinging . | . . . . . . . . . . . . . Exploded 4 | . . . . . . . 3 4 . . . 1 Melee 1 | . . . . . . . . . . 1 . . Uniques/NPCs Destroyed . | . . . . . . . . . . . . . Combat | -11 -10 -9 -8 -8 -7 -6 -5 -5 -5 -5 -4 -4 -------- Run | Scr Mat Mat Mat Sto Fac Fac Fac Upp Upp War Pro Fac Damage Taken 3012 | . 62 29 196 489 62 385 164 232 70 398 29 896 Core 485 | . 27 12 44 89 . 83 . 21 . 52 11 146 Absorbed by Shields . | . . . . . . . . . . . . . Core Remaining (%) 91 | 100 89 97 . 75 100 90 . . . . 91 . Volleys Fired 23 | . . . . . . . 2 1 3 6 . 11 Largest 1 | . . . . . . . 1 1 1 1 . 1 Hottest 88 | . . . . . . . 46 46 46 88 . 49 Shots Fired 23 | . . . . . . . 2 1 3 6 . 11 Gun . | . . . . . . . . . . . . . Cannon 6 | . . . . . . . . . . 6 . . Launcher 17 | . . . . . . . 2 1 3 . . 11 Special . | . . . . . . . . . . . . . Kinetic . | . . . . . . . . . . . . . Thermal . | . . . . . . . . . . . . . Explosive 17 | . . . . . . . 2 1 3 . . 11 Electromagnetic 6 | . . . . . . . . . . 6 . . Robot Hit Streak 15 | . . . . . . . 2 . . 8 . 15 Robot Miss Streak 1 | . . . . . . . . . . . . 1 Penetration Max . | . . . . . . . . . . . . . Secondary Targets . | . . . . . . . . . . . . . Shots Hit Robots 23 | . . . . . . . 2 . . 7 . 14 Core Hits 31 | . . . . 7 . . 4 4 2 3 . 11 Critical Hits . | . . . . . . . . . . . . . Critical Kills . | . . . . . . . . . . . . . Critical Parts Destroyed . | . . . . . . . . . . . . . Melee Attacks 5 | . . . . . . . . . . 1 . 4 Impact . | . . . . . . . . . . . . . Slashing . | . . . . . . . . . . . . . Piercing . | . . . . . . . . . . . . . Entropic 5 | . . . . . . . . . . 1 . 4 Sneak Attacks . | . . . . . . . . . . . . . Combat Hostiles . | . . . . . . . . . . . . . Follow-up Attacks . | . . . . . . . . . . . . . Damage Inflicted 2375 | . . . . 68 . . 376 344 46 291 . 1250 Guns . | . . . . . . . . . . . . . Cannons 192 | . . . . . . . . . . 192 . . Explosions 1645 | . . . . . . . 376 344 46 . . 879 Melee 470 | . . . . . . . . . . 99 . 371 Ramming 68 | . . . . 68 . . . . . . . . Kinetic . | . . . . . . . . . . . . . Thermal . | . . . . . . . . . . . . . Explosive 1645 | . . . . . . . 376 344 46 . . 879 Electromagnetic 192 | . . . . . . . . . . 192 . . Impact . | . . . . . . . . . . . . . Slashing . | . . . . . . . . . . . . . Piercing . | . . . . . . . . . . . . . Entropic 470 | . . . . . . . . . . 99 . 371 Highest Corruption 2 | . . . . 2 . 1 . . . . . . Average Corruption 1 | . . . . 1 . 1 . . . . . . Corruption Purged . | . . . . . . . . . . . . . Effects 1 | . . . . 1 . . . . . . . . Data Loss (minor) 1 | . . . . 1 . . . . . . . . Overload Shots . | . . . . . . . . . . . . . Overflow Damage 146 | . . . . . . . 70 . . . . 76 Projectiles . | . . . . . . . . . . . . . Explosions 146 | . . . . . . . 70 . . . . 76 Melee . | . . . . . . . . . . . . . Knockbacks . | . . . . . . . . . . . . . Impact . | . . . . . . . . . . . . . Kinetic . | . . . . . . . . . . . . . Secondary . | . . . . . . . . . . . . . Self-Inflicted Damage 104 | . . . . 29 . . . . 53 . . 22 Shots 3 | . . . . . . . . . 2 . . 1 Rammed 18 | . . . . 18 . . . . . . . . Targets Rammed 18 | . . . . 18 . . . . . . . . Kicked . | . . . . . . . . . . . . . Crushed . | . . . . . . . . . . . . . Highest Temperature 259 | . . . . 6 . . 1 2 4 95 241 259 Average Temperature 101 | . . . . 6 . . 1 2 4 32 121 113 Received Heat Transfer 891 | . 30 18 45 333 . 183 9 . . 81 . 192 Siege Activations . | . . . . . . . . . . . . . Robots Corrupted 3 | . . . . . . . . . . 3 . . Combat Hostiles 3 | . . . . . . . . . . 3 . . Parts Fried 2 | . . . . . . . . . . 2 . . Impact Corruptions . | . . . . . . . . . . . . . Robots Melted . | . . . . . . . . . . . . . Combat Hostiles . | . . . . . . . . . . . . . Parts Melted . | . . . . . . . . . . . . . Heat Transferred . | . . . . . . . . . . . . . Parts Sabotaged . | . . . . . . . . . . . . . Parts Stolen . | . . . . . . . . . . . . . Parts Stripped . | . . . . . . . . . . . . . Power Chain Reactions . | . . . . . . . . . . . . . Missiles Intercepted . | . . . . . . . . . . . . . Alert | -11 -10 -9 -8 -8 -7 -6 -5 -5 -5 -5 -4 -4 ------- Run | Scr Mat Mat Mat Sto Fac Fac Fac Upp Upp War Pro Fac Peak Influence 231 | . . 22 58 69 27 116 231 . . . . 189 Initial 41 | . . . 6 17 22 6 41 . . . . . Average 65 | . . 7 17 47 20 29 153 . . . . 96 Maximum Alert Level 1 | . . . . . . . 1 . . . . . Low Security (%) 98 | 100 100 100 100 100 100 100 94 . . . . 100 Level 1 1 | . . . . . . . 5 . . . . . Level 2 . | . . . . . . . . . . . . . Level 3 . | . . . . . . . . . . . . . Level 4 . | . . . . . . . . . . . . . Level 5 . | . . . . . . . . . . . . . High Security . | . . . . . . . . . . . . . Max Security . | . . . . . . . . . . . . . Squads Dispatched 3 | . . . 1 1 . 1 . . . . . . Investigation 1 | . . . 1 . . . . . . . . . Extermination . | . . . . . . . . . . . . . Reinforcement 2 | . . . . 1 . 1 . . . . . . Assault . | . . . . . . . . . . . . . Garrison . | . . . . . . . . . . . . . Intercept . | . . . . . . . . . . . . . Construction Impeded . | . . . . . . . . . . . . . Haulers Reinforced . | . . . . . . . . . . . . . Stealth | -11 -10 -9 -8 -8 -7 -6 -5 -5 -5 -5 -4 -4 --------- Run | Scr Mat Mat Mat Sto Fac Fac Fac Upp Upp War Pro Fac Distress Signals 4 | . . . 1 1 . . 2 . . . . . Communications Jammed . | . . . . . . . . . . . . . Distress Signals . | . . . . . . . . . . . . . Times Spotted 112 | . 6 7 12 12 2 10 17 8 2 16 4 16 Peak Tracking Total 15 | . 6 6 11 12 2 5 10 4 3 8 4 15 Tactical Retreats 9 | . . 1 1 1 . 2 1 1 2 . . . Traps | -11 -10 -9 -8 -8 -7 -6 -5 -5 -5 -5 -4 -4 ------- Run | Scr Mat Mat Mat Sto Fac Fac Fac Upp Upp War Pro Fac Traps Triggered 2 | . . . 1 . . . . . . . . 1 Indirectly . | . . . . . . . . . . . . . Trap Hack Attempts . | . . . . . . . . . . . . . Triggered . | . . . . . . . . . . . . . Disarmed . | . . . . . . . . . . . . . Reprogrammed . | . . . . . . . . . . . . . Reused . | . . . . . . . . . . . . . Traps Extracted . | . . . . . . . . . . . . . Installed . | . . . . . . . . . . . . . Triggered 6 | . . . . . . . . . . 6 . . Machines | -11 -10 -9 -8 -8 -7 -6 -5 -5 -5 -5 -4 -4 ---------- Run | Scr Mat Mat Mat Sto Fac Fac Fac Upp Upp War Pro Fac Machines Disabled 4 | . . . . . . . 1 . 3 . . . Max in Single Turn 2 | . . . . . . . 1 . 2 . . . Machines Sabotaged . | . . . . . . . . . . . . . Garrisons Compromised . | . . . . . . . . . . . . . Overloaded Fab Kills . | . . . . . . . . . . . . . Fab Network Shutdowns . | . . . . . . . . . . . . . Hacking | -11 -10 -9 -8 -8 -7 -6 -5 -5 -5 -5 -4 -4 --------- Run | Scr Mat Mat Mat Sto Fac Fac Fac Upp Upp War Pro Fac Machines Accessed 15 | . . 2 2 1 . . . . 1 9 . . Terminals 5 | . . 2 2 1 . . . . . . . . Fabricators . | . . . . . . . . . . . . . Repair Stations . | . . . . . . . . . . . . . Recycling Units . | . . . . . . . . . . . . . Scanalyzers . | . . . . . . . . . . . . . Garrison Access . | . . . . . . . . . . . . . Total Hacks 29 | . . 4 4 1 . . . . 1 19 . . Successful 23 | . . 1 1 1 . . . . 1 19 . . Failed 6 | . . 3 3 . . . . . . . . . Catastrophic 1 | . . 1 . . . . . . . . . . Database Lockouts . | . . . . . . . . . . . . . Manual 10 | . . 4 4 1 . . . . . 1 . . Terminals 9 | . . 4 4 1 . . . . . . . . Fabricators . | . . . . . . . . . . . . . Repair Stations . | . . . . . . . . . . . . . Recycling Units . | . . . . . . . . . . . . . Scanalyzers . | . . . . . . . . . . . . . Garrison Access . | . . . . . . . . . . . . . Terminal Hacks 23 | . . 1 1 1 . . . . 1 19 . . Record 13 | . . . . . . . . . . 13 . . Prototype ID Bank 5 | . . . . . . . . . . 5 . . Open Door 2 | . . . . . . . . . 1 1 . . Level Access Points 3 | . . 1 1 1 . . . . . . . . Fabricator Hacks . | . . . . . . . . . . . . . Repair Station Hacks . | . . . . . . . . . . . . . Recycling Unit Hacks . | . . . . . . . . . . . . . Scanalyzer . | . . . . . . . . . . . . . Garrison Access Hacks . | . . . . . . . . . . . . . Unauthorized Hacks . | . . . . . . . . . . . . . Terminals . | . . . . . . . . . . . . . Fabricators . | . . . . . . . . . . . . . Repair Stations . | . . . . . . . . . . . . . Recycling Units . | . . . . . . . . . . . . . Scanalyzers . | . . . . . . . . . . . . . Garrison Access . | . . . . . . . . . . . . . Data Cores Recovered . | . . . . . . . . . . . . . Used . | . . . . . . . . . . . . . Hacking Detections 4 | . . 2 2 . . . . . . . . . Full Trace Events 2 | . . 1 1 . . . . . . . . . Feedback Events . | . . . . . . . . . . . . . Feedback Blocked . | . . . . . . . . . . . . . Robot Schematics Acquired . | . . . . . . . . . . . . . Robots Built . | . . . . . . . . . . . . . Matter . | . . . . . . . . . . . . . Time . | . . . . . . . . . . . . . Total Robot Build Rating . | . . . . . . . . . . . . . Part Schematics Acquired . | . . . . . . . . . . . . . Parts Built . | . . . . . . . . . . . . . Matter . | . . . . . . . . . . . . . Time . | . . . . . . . . . . . . . Total Part Build Rating . | . . . . . . . . . . . . . Parts Repaired . | . . . . . . . . . . . . . Time . | . . . . . . . . . . . . . Parts Recycled . | . . . . . . . . . . . . . Recycled Matter . | . . . . . . . . . . . . . Retrieved Matter . | . . . . . . . . . . . . . Retrieved Components . | . . . . . . . . . . . . . Parts Scanalyzed . | . . . . . . . . . . . . . Part Schematics Acquired . | . . . . . . . . . . . . . Parts Damaged . | . . . . . . . . . . . . . Bothacking | -11 -10 -9 -8 -8 -7 -6 -5 -5 -5 -5 -4 -4 ------------ Run | Scr Mat Mat Mat Sto Fac Fac Fac Upp Upp War Pro Fac Used RIF Installer . | . . . . . . . . . . . . . Robots Hacked . | . . . . . . . . . . . . . Non-combat . | . . . . . . . . . . . . . Combat . | . . . . . . . . . . . . . Robot Hacks Applied . | . . . . . . . . . . . . . Relay Couplers Released . | . . . . . . . . . . . . . Robots Rewired . | . . . . . . . . . . . . . Allies Hacked . | . . . . . . . . . . . . . Hacks Repelled . | . . . . . . . . . . . . . Allies | -11 -10 -9 -8 -8 -7 -6 -5 -5 -5 -5 -4 -4 -------- Run | Scr Mat Mat Mat Sto Fac Fac Fac Upp Upp War Pro Fac Total Allies . | . . . . . . . . . . . . . Largest Group . | . . . . . . . . . . . . . Highest-Rated Group . | . . . . . . . . . . . . . Highest-Rated Ally . | . . . . . . . . . . . . . Total Orders . | . . . . . . . . . . . . . Ally Attacks . | . . . . . . . . . . . . . Total Damage . | . . . . . . . . . . . . . Kills . | . . . . . . . . . . . . . Allies Corrupted . | . . . . . . . . . . . . . Allies Melted . | . . . . . . . . . . . . . Intel | -11 -10 -9 -8 -8 -7 -6 -5 -5 -5 -5 -4 -4 ------- Run | Scr Mat Mat Mat Sto Fac Fac Fac Upp Upp War Pro Fac Robot Analysis Total . | . . . . . . . . . . . . . Derelict Logs Recovered 2 | . . . . . . . . 2 . . . . Drone Launches . | . . . . . . . . . . . . . Drone Recoveries . | . . . . . . . . . . . . . Exploration | -11 -10 -9 -8 -8 -7 -6 -5 -5 -5 -5 -4 -4 ------------- Run | Scr Mat Mat Mat Sto Fac Fac Fac Upp Upp War Pro Fac Turns Passed 1816 | 21 42 50 77 91 88 249 242 133 138 520 40 125 Spaces Moved 3182 | 29 83 95 126 129 131 410 340 252 350 782 171 284 Core 806 | 29 83 95 123 129 131 44 14 29 . 129 . . Treads . | . . . . . . . . . . . . . Legs 64 | . . . 3 . . 2 59 . . . . . Wheels . | . . . . . . . . . . . . . Hover . | . . . . . . . . . . . . . Flight 2312 | . . . . . . 364 267 223 350 653 171 284 Fastest Speed 20 | 50 50 50 50 50 50 50 31 22 22 20 20 20 Average Speed 43 | 50 50 50 51 52 61 54 59 43 23 46 20 22 Slowest Speed 200 | 50 50 50 120 150 100 120 200 200 25 200 20 105 Overloaded Moves . | . . . . . . . . . . . . . Propulsion Burnouts . | . . . . . . . . . . . . . Robots Hopped 28 | . . . . . . 6 8 7 . 5 . 2 Cave-ins Triggered . | . . . . . . . . . . . . . Exploration Rate (%) 30 | 3 32 18 18 48 4 17 15 46 51 86 43 11 Regions Visited 12 Branch Regions 5 Pre-discovered Areas 1 | . . . . . . . . 1 . . . . Known Exits Taken 12 | 1 1 1 1 1 1 1 1 1 1 1 1 . Unknown Exits Taken . | . . . . . . . . . . . . . Scrap Searched . | . . . . . . . . . . . . . Spaces Dug 18 | . . . . . . . . . 18 . . . Terrain Destroyed 157 | . . . . . . . 7 16 49 . . 85 Melee . | . . . . . . . . . . . . . Projectile . | . . . . . . . . . . . . . AOE 157 | . . . . . . . 7 16 49 . . 85 Terrain Rammed . | . . . . . . . . . . . . . Walls Destroyed . | . . . . . . . . . . . . . Machines Disabled . | . . . . . . . . . . . . . Actions | -11 -10 -9 -8 -8 -7 -6 -5 -5 -5 -5 -4 -4 --------- Run | Scr Mat Mat Mat Sto Fac Fac Fac Upp Upp War Pro Fac Total 3531 | 35 82 96 134 152 138 428 368 266 403 925 175 329 Wait 208 | . . . 4 . . . 13 16 48 122 5 . Move 3121 | 28 82 94 125 128 130 398 325 240 349 772 170 280 Hop 21 | . . . . . . 5 6 4 . 4 . 2 Pick Up 47 | 5 . 1 . 2 3 4 12 1 2 5 . 12 Fast Attach 22 | . . 1 5 . 1 9 2 . . 3 . 1 Attach 36 | 2 . . . 2 3 2 5 2 . 6 . 14 Detach . | . . . . . . . . . . . . . Swap 4 | . . . . 1 . 2 . . . 1 . . Drop 26 | . . . . 1 1 8 3 2 1 5 . 5 Fire 23 | . . . . . . . 2 1 3 6 . 11 Melee 5 | . . . . . . . . . . 1 . 4 Ram 18 | . . . . 18 . . . . . . . . Kick . | . . . . . . . . . . . . . Crush . | . . . . . . . . . . . . . Escape Stasis . | . . . . . . . . . . . . . Rewire . | . . . . . . . . . . . . . Trap . | . . . . . . . . . . . . . Miscellaneous . | . . . . . . . . . . . . . Route ------- -11/Scrapyard -10/Materials (discovered 2 exits: *Mat / *Min) -9/Materials (discovered 3 exits: *Mat x3) -8/Materials (discovered 4 exits: Fac x3 / *Sto) -8/Storage -7/Factory -6/Factory -5/Factory -5/Upper Caves -5/Upper Caves -5/Warlord -4/Proximity Caves -4/Factory (discovered 2 exits: *Upp / Ext) History --------- Turn | Location | Event 10 | -11/Scrapyard | Identified exit to Materials 10 | -11/Scrapyard | Discovered exit to Materials (range 15) 22 | -11/Scrapyard | Entered Materials 22 | -10/Materials | Evolved 1 slot: Power x1 44 | -10/Materials | Identified exit to Mines 44 | -10/Materials | Discovered exit to Mines (range 15) 57 | -10/Materials | Identified exit to Materials 57 | -10/Materials | Discovered exit to Materials (range 13) 64 | -10/Materials | Entered another Materials area 64 | -9/Materials | Evolved 2 slots: Propulsion x2 75 | -9/Materials | Identified exit to Materials 114 | -9/Materials | Entered another Materials area 114 | -8/Materials | Evolved 2 slots: Propulsion x2 174 | -8/Materials | Identified exit to Factory 176 | -8/Materials | Identified exit to Storage 176 | -8/Materials | Discovered exit to Storage (range 14) 191 | -8/Materials | Entered Storage 282 | -8/Storage | Entered Factory 282 | -7/Factory | Evolved 2 slots: Propulsion x1, Utility x1 321 | -7/Factory | Build established: Hacker-Mutant 351 | -7/Factory | Identified exit to Factory 351 | -7/Factory | Discovered exit to Factory (range 15) 370 | -7/Factory | Entered another Factory area 370 | -6/Factory | Evolved 2 slots: Propulsion x1, Utility x1 615 | -6/Factory | Identified exit to Factory 615 | -6/Factory | Discovered exit to Factory (range 9) 619 | -6/Factory | Entered another Factory area 619 | -5/Factory | Evolved 2 slots: Utility x2 714 | -5/Factory | Spotted B-75 Beast 857 | -5/Factory | Identified exit to Upper Caves 857 | -5/Factory | Discovered exit to Upper Caves (range 10) 861 | -5/Factory | Entered Upper Caves 881 | -5/Upper Caves | Learned 4 Factory zone layouts 992 | -5/Upper Caves | Identified exit to Upper Caves 992 | -5/Upper Caves | Discovered exit to Upper Caves (range 6) 994 | -5/Upper Caves | Entered another Upper Caves area 1041 | -5/Upper Caves | Acquired the password to a Derelict Tinkerer's latest research 1057 | -5/Upper Caves | Encountered a Warlord checkpoint 1127 | -5/Upper Caves | Identified exit to Warlord 1127 | -5/Upper Caves | Discovered exit to Warlord (range 14) 1132 | -5/Upper Caves | Entered Warlord 1142 | -5/Warlord | Identified exit to Proximity Caves 1142 | -5/Warlord | Discovered exit to Proximity Caves (range 12) 1443 | -5/Warlord | Received a Watcher feed algorithm from an ecstatic Tinkerer 1470 | -5/Warlord | Visited the Vortex Lab 1472 | -5/Warlord | Found Prototype Piercing Weapon 1472 | -5/Warlord | Identified Vortex Lance 1486 | -5/Warlord | Warlord's base attacked by MAIN.C 1566 | -5/Warlord | Met Warlord 1650 | -5/Warlord | Lost 4 parts (1p3n) 1652 | -5/Warlord | Entered Proximity Caves 1678 | -4/Proximity Caves | Spotted B-86 Titan 1689 | -4/Proximity Caves | Identified exit to Factory 1689 | -4/Proximity Caves | Discovered exit to Factory (range 10) 1692 | -4/Proximity Caves | Entered Factory 1692 | -4/Factory | Evolved 2 slots: Power x1, Utility x1 1693 | -4/Factory | Identified exit to Extension 1724 | -4/Factory | Identified exit to Upper Caves 1724 | -4/Factory | Discovered exit to Upper Caves (range 15) 1768 | -4/Factory | Spotted B-86 Titan 1783 | -4/Factory | Spotted B-86 Titan 1817 | -4/Factory | Self-destructed Last Messages --------------- 01794_ Slug penetrates Subcomponent Replicator. 01796_ Penetrated by Slug. 01796_ U-05 Engineer destroyed. 01802_ Triggered Segregator Trap. 01802_ Arcs of energy rise from the floor. 01802_ Field Propulsion Drive blown off. 01802_ Vortex Lance blown off. 01802_ Acquired Field Propulsion Drive. 01804_ Acquired Vortex Lance. 01808_ Slug penetrates Wall. 01808_ Penetrated by Slug. 01810_ Field Propulsion Array destroyed. 01811_ Penetrated by Slug. 01813_ Slug penetrates H-77 Assassin. 01813_ Slug penetrates Wall. 01813_ Penetrated by Slug. 01814_ Utility Shielding destroyed. 01816_ Penetrated by Slug. 01817_ Slug penetrates Wall. 01817_ Field Propulsion Drive destroyed. Map ----- +----------------------------------------------------+ | ?????????????????????????????????????????????????? | | ?????????????????????????????????????????????????? | | ?????????????????????????????????????????????????? | | ?????????????????????????????????????????????????? | | ?????????????????????????????????????????????????? | | ?????????????????????????????????????????????????? | | ?????????????????????????????????????????????????? | | ?????????????????????????????????????????????????? | | ?????????????????????????????????????????????????? | | ???????????????????????"?????????????????????????? | | ?????????????????????" ??????????????????????????? | | ???????????????????? " ??????????????????????????? | | ???????????????????? ???????????????????????????? | | ######????##########/###?????????????????????????? | | ###### ! #?????????????????????????? | | # """ """ #?????????????????????????? | | # "Y """ ]#?????????????????????????? | | #??"" """ ???????????????????????????? | | ## #???? ?????????????????????????????? | | # ### #######+########???????????????????????? | | # #?# #???????????????????????? | | # #?# #???????????????????????? | | # #?# #???????????????????????? | | # #############+#### #???????????????????????? | | #????????? ?# ####### A ????????? | | #??????? ! "" # h@ g #??????????? | | #??????# T" # h #??????????? | | #??????#* "" # #??????????? | | #??????# ############+###+#??????????? | | #??????#""" #???????????????????????????? | | #??????#""" ] #???????????????????????????? | | #??????#""" ????????????????????????????? | | #???????? ?????????????????????????????? | | #?????????#####?????????????????????????????? | | #???????????????????????????????????????????? | | #???????????????????????????????????????????? | | #???????????????????????????????????????????? | | #???????????????????????????????????????????? | | #???????????????????????????????????????????? | | ######???????????????????????????????????????????? | | ?????????????????????????????????????????????????? | | ?????????????????????????????????????????????????? | | ?????????????????????????????????????????????????? | | | | | | | | | | | | | | | +----------------------------------------------------+ Best States ------------- Heat Dissipation 68 Energy Generation 49 Energy Capacity 1120 Matter Stores 300 Matter Capacity 300 Sight Range 16 Terrain Scan Density 10 Additional Mass Support 18 Resistance: KI 35 Resistance: TH 35 Resistance: EX 35 Resistance: EM 35 Resistance: I 35 Resistance: S 35 Resistance: P 35 Utility Shielding 66 Evasion (%) 75 Offensive Hacking 20 Item Schematics ----------------- None Robot Schematics ------------------ None Fabricated ------------ Nothing Alien Tech Used ----------------- None Achievements -------------- Librarian Challenges ------------ None Game ------ Seed TacticalStorageSabre Manual? 0 Play Time 00:54:51 Cumulative 35.2 hours Start 2022.01.14 @ 12:03:50 End 2022.01.14 @ 13:11:20 Sessions 1 Manual Loads 0 Difficulty Explorer Special Mode None Game No. 36 Rogue 1 Adventurer 0 Explorer 35 Win Type - Total 2 Types 2/0/0/0/0/0/0/0/0 Lore% 11 Gallery% 38 Achievement% 28 Wizard Run 0 Options --------- ASCII 0 Keyboard 0 Movement Numpad Keybinds 0 Fullscreen 1 Font 12/Smallcaps Map View 83x54 Tactical HUD 1 Map Filters NONE Filters NONE Steam 1 RUN: 10b0a428-638b-47bf-bd06-d1f705fd2cbf